fUST/lending_fUST_20240104
["ID","MTS","AMOUNT","RATE_DAILY","PERIOD"]
[310088418,1704313846135,-4703.58483279,0.00025,2]
[310088419,1704313846144,-4611.32836086,0.00025367,2]
[310088434,1704313988303,154.84515485,0.00021884,4]
[310088435,1704314064924,154.84515485,0.00021881,4]
[310088437,1704314141337,154.84515485,0.00021881,4]
[310088443,1704314219998,154.84515485,0.00021877,4]
[310088484,1704314290351,154.84515485,0.00021873,4]
[310088492,1704314352884,154.84515485,0.00021871,4]
[310088493,1704314374892,154.84515485,0.00020079,4]
[310088495,1704314398911,154.84515485,0.00020079,4]
[310088497,1704314418893,154.84515485,0.00020079,4]
[310088498,1704314436897,154.84515485,0.00020079,4]
[310088499,1704314439953,174.513544,0.00020845,2]
[310088500,1704314454899,154.84515485,0.00020079,4]
[310088502,1704314474908,154.84515485,0.00020079,4]
[310088503,1704314492901,154.84515485,0.00020079,4]
[310088508,1704314512900,154.84515485,0.00020079,4]
[310088511,1704314530093,-245.0,0.00021085,2]
[310088512,1704314530321,-5.0,0.00021085,2]
[310088513,1704314530907,154.84515485,0.00020079,4]
[310088514,1704314536818,268.63088671,0.0002,2]
[310088516,1704314546908,154.84515485,0.00020079,4]
[310088517,1704314556810,268.31189634,0.0002,2]
[310088518,1704314564910,154.84515485,0.00020079,4]
[310088520,1704314584907,154.84515485,0.00020079,4]
[310088521,1704314606920,154.84515485,0.00020079,4]
[310088534,1704314626921,154.84515485,0.00020079,4]
[310088547,1704314637561,1022.99137646,0.0003,120]
[310088564,1704314644915,154.84515485,0.00020079,4]
[310088638,1704314666921,154.84515485,0.00020079,4]
[310088664,1704314680335,2783.88,0.00021,2]
[310088666,1704314684912,154.84515485,0.00020079,4]
[310088672,1704314694197,-273.13997523,0.00021862,2]
[310088673,1704314694224,-360.177092,0.00021863,2]
[310088674,1704314694249,-260.53076677,0.00021863,2]
[310088675,1704314694278,-154.84515485,0.00021883,2]
[310088676,1704314694305,-272.67413777,0.00021886,2]
[310088677,1704314694332,-166.666666,0.00021918,2]
[310088678,1704314694358,-1295.56133279,0.00021986,2]
[310088679,1704314694383,-343.29812285,0.00021986,2]
[310088680,1704314694410,-173.77258207,0.00022213,2]
[310088681,1704314694535,-692.55,0.00022302,3]
[310088682,1704314694563,-577.12,0.00022302,3]
[310088683,1704314694591,-480.94,0.00022302,3]
[310088684,1704314694618,-400.78,0.00022302,3]
[310088685,1704314694646,-333.98,0.00022302,3]
[310088686,1704314694674,-2097.15281013,0.0002231,2]
[310088687,1704314694699,-468.93451344,0.0002231,2]
[310088688,1704314694726,-2067.23046819,0.0002231,2]
[310088689,1704314694751,-78250.97365781,0.00022312,2]
[310088690,1704314694778,-24900.0,0.00022313,2]
[310088691,1704314695216,3905.16799703,0.00022,2]
[310088697,1704314726219,308.77092652,0.00020213,2]
[310088713,1704314756075,-312.56527887,0.00022429,2]
[310088714,1704314756106,-154.84515485,0.0002243,4]
[310088715,1704314756138,-166.666666,0.00022431,2]
[310088716,1704314756167,-166.666666,0.00022944,2]
[310088717,1704314756196,-387.14646324,0.0002295,2]
[310088753,1704314828179,166.666666,0.00022087,2]
[310088754,1704314828467,166.666666,0.00022689,2]
[310088874,1704315032379,-154.84515485,0.00023049,2]
[310088877,1704315032388,-182.441817,0.0002305,2]
[310088880,1704315032397,-431.356455,0.00023139,2]
[310088882,1704315032407,-431.356455,0.00023139,2]
[310088885,1704315032416,-431.356455,0.00023139,2]
[310088888,1704315032425,-431.356455,0.00023139,2]
[310088891,1704315032434,-431.356455,0.00023139,2]
[310088893,1704315032443,-175.489464,0.00023267,2]
[310088895,1704315032452,-166.666666,0.00023292,2]
[310088897,1704315032461,-2927.6637445,0.00023521,2]
[310088899,1704315032470,-24900.0,0.00023529,2]
[310088901,1704315032479,-6620.7714949,0.00023572,2]
[310088903,1704315032488,-166.666666,0.00023894,2]
[310088905,1704315032497,-154.84515485,0.00024495,4]
[310088908,1704315032506,-260.53076677,0.00024495,2]
[310088915,1704315032527,-166.666666,0.00024496,2]
[310088918,1704315032538,-182.441817,0.00024664,2]
[310088921,1704315032550,-2481.12619407,0.00025,2]
[310088924,1704315032560,-4703.58483279,0.00025,2]
[310088927,1704315032569,-612.96786415,0.00025097,2]
[310088930,1704315032579,-166.666666,0.00025098,2]
[310088933,1704315032589,-308.77092652,0.00025213,2]
[310088936,1704315032599,-1017.98455817,0.00025366,2]
[310088939,1704315032609,-15418.49479732,0.00025366,2]
[310088942,1704315032620,-9082.24888357,0.00025367,7]
[310088945,1704315032629,-387.1464632,0.00025438,2]
[310088948,1704315032640,-200.0,0.00025452,7]
[310088951,1704315032650,-524.98429826,0.00027923,2]
[310088955,1704315032660,-387.1464632,0.00027925,2]
[310088958,1704315032670,-280.0,0.00027997,15]
[310088961,1704315032679,-154.84515485,0.00029682,2]
[310088964,1704315032689,-5151.65393072,0.00029698,2]
[310088967,1704315032698,-239.6649204,0.00029698,2]
[310088970,1704315032707,-1320.81396188,0.00029799,2]
[310088973,1704315032716,-496.05871971,0.000298,5]
[310088975,1704315032725,-1725.55620477,0.0003,4]
[310088977,1704315032735,-154.0,0.0003,2]
[310088979,1704315032744,-308.77092652,0.00030213,2]
[310088992,1704315032754,-387.1464632,0.00030413,2]
[310088994,1704315032875,-391.0,0.00030797,15]
[310088996,1704315032885,-155.0,0.00032,2]
[310088998,1704315032894,-621.21830516,0.00032005,2]
[310089000,1704315032904,-387.1464632,0.000329,2]
[310089002,1704315032914,-186.234443,0.00032915,2]
[310089004,1704315032923,-161.07,0.00032989,3]
[310089006,1704315032933,-251.48,0.00032989,3]
[310089008,1704315032944,-2817.67172187,0.00032997,4]
[310089011,1704315032954,-3707.75757248,0.00032998,4]
[310089012,1704315032963,-293.82215808,0.00032998,4]
[310089014,1704315032972,-433.14504265,0.00032998,4]
[310089016,1704315032981,-1151.09317548,0.00032998,4]
[310089018,1704315032991,-440.15659309,0.00032998,4]
[310089020,1704315033001,-483.94187289,0.00032998,2]
[310089023,1704315033011,-578.33832584,0.00032998,2]
[310089024,1704315033020,-3893.10032845,0.00032998,4]
[310089027,1704315033030,-2777.46895919,0.00032998,4]
[310089028,1704315033039,-255.47481132,0.00032999,2]
[310089030,1704315033048,-470.35299592,0.00032999,2]
[310089033,1704315033058,-55860.52353008,0.00032999,4]
[310089035,1704315033067,-500.0,0.00032999,4]
[310089036,1704315033076,-216.56690092,0.00032999,4]
[310089038,1704315033085,-500.0,0.00032999,4]
[310089040,1704315033095,-433.8321074,0.00032999,4]
[310089043,1704315033104,-344.30451359,0.00032999,4]
[310089044,1704315033113,-499.99999999,0.00032999,4]
[310089046,1704315033124,-232.47242991,0.00033,3]
[310089049,1704315033135,-10765.86350689,0.00033,30]
[310089199,1704315041408,-209.56,0.00032989,3]
[310089200,1704315041418,-309.0,0.00033,2]
[310089201,1704315041427,-99.31213413,0.00033,30]
[310089202,1704315041440,-797.42676992,0.00033,30]
[310089204,1704315041818,-45056.76379086,0.00033,30]
[310089205,1704315041831,-4743.38817436,0.00033,30]
[310089237,1704315043180,-8546.2,0.00033,30]
[310089239,1704315043244,-256.17,0.00033,30]
[310089241,1704315043256,-2500.0,0.00033,30]
[310089310,1704315046235,-267.5962475,0.00031349,2]
[310089312,1704315046245,-174.64,0.0003299,3]
[310089314,1704315046254,-156.69710926,0.00032999,4]
[310089316,1704315046264,-479.33682759,0.00032999,4]
[310089318,1704315046273,-721.32232964,0.00032999,4]
[310089320,1704315046282,-542.82839488,0.00033,30]
[310089345,1704315046532,-34181.0774721,0.00033,30]
[310089364,1704315245627,648.7474286,0.000125,2]
[310089371,1704315604836,5210.05665149,0.000125,2]
[310089390,1704315718953,1689.91142006,0.0002,2]
[310089391,1704315782611,607.672133,0.00021,2]
[310089392,1704316015305,-154.84515485,0.00024999,4]
[310089393,1704316015327,-11.82151115,0.00025,2]
[310089442,1704316234810,-725.42976842,0.00025,2]
[310089443,1704316234820,-8988.02441895,0.00025,2]
[310089444,1704316234830,-154.84515485,0.00027498,4]
[310089445,1704316234840,-200.0,0.00027499,15]
[310089446,1704316234849,-166.666666,0.00028026,2]
[310089447,1704316234858,-24900.0,0.0002851,2]
[310089448,1704316234867,-502.6938218,0.0002869,2]
[310089449,1704316234877,-166.666666,0.0002879,2]
[310089450,1704316234885,-175.489464,0.00029127,2]
[310089451,1704316234894,-166.666666,0.00029554,2]
[310089452,1704316234904,-462.6176876,0.00029698,2]
[310089453,1704316234912,-1320.81396188,0.00029799,2]
[310089454,1704316234922,-496.05871971,0.000298,5]
[310089455,1704316234931,-4548.25634434,0.0003,4]
[310089456,1704316234940,-280.0,0.00030249,15]
[310089457,1704316234950,-166.666666,0.00030318,2]
[310089458,1704316234959,-166.666666,0.00031082,2]
[310089459,1704316234968,-166.666666,0.00031846,2]
[310089460,1704316234977,-998.90120867,0.00031999,2]
[310089461,1704316234987,-2924.38985001,0.00032,10]
[310089462,1704316234997,-4921.43746771,0.00032,30]
[310089463,1704316235007,-183.74133472,0.00032,50]
[310089464,1704316235017,-622.09313662,0.00032001,2]
[310089465,1704316235027,-620.16521583,0.00032009,2]
[310089466,1704316235036,-744.25,0.0003289,3]
[310089467,1704316235046,-620.21,0.0003289,3]
[310089468,1704316235055,-516.84,0.0003289,3]
[310089469,1704316235064,-263.31,0.00032899,2]
[310089470,1704316235074,-263.31,0.00032899,2]
[310089471,1704316235083,-263.31,0.00032899,2]
[310089472,1704316235093,-263.31,0.00032899,2]
[310089473,1704316235103,-263.31,0.00032899,2]
[310089474,1704316235113,-263.31,0.00032899,2]
[310089475,1704316235123,-263.31,0.00032899,2]
[310089476,1704316235133,-36806.8033281,0.000329,2]
[310089539,1704316242657,-989.15471856,0.000329,2]
[310089541,1704316242669,-2000.302156,0.000329,2]
[310089543,1704316242682,-113875.66558,0.000329,2]
[310089572,1704316242965,-1094.725,0.000329,2]
[310089577,1704316243086,-22156.15083426,0.000329,2]
[310089579,1704316243098,-2443.1194624,0.000329,2]
[310089581,1704316243109,-7627.16893474,0.000329,2]
[310089634,1704316243578,-5570.67207981,0.000329,2]
[310089637,1704316243589,-3946.16404326,0.000329,2]
[310089645,1704316243660,-6772.19918937,0.000329,2]
[310089766,1704316246456,-1493.43723891,0.000329,2]
[310089912,1704317432586,-318.88330525,0.00024674,2]
[310089914,1704317432597,-328.2954028,0.00029203,2]
[310089916,1704317432608,-154.86062544,0.00029203,4]
[310089918,1704317432619,-166.666666,0.00029204,2]
[310089920,1704317432636,-3375.95035781,0.00029592,2]
[310089922,1704317432646,-239.76924444,0.00029698,2]
[310089924,1704317432657,-166.666666,0.0003,2]
[310089925,1704317432668,-157.08568762,0.0003,4]
[310089927,1704317432680,-685.36830863,0.0003,4]
[310089928,1704317432691,-175.0,0.00030425,2]
[310089929,1704317432703,-24900.0,0.00030425,2]
[310089930,1704317432713,-3103.0571967,0.00030649,2]
[310089931,1704317432725,-166.666666,0.00030796,2]
[310089932,1704317432735,-174.513544,0.00031537,2]
[310089933,1704317432746,-166.666666,0.00031592,2]
[310089934,1704317432758,-154.84515485,0.00032,4]
[310089935,1704317432769,-541.19183557,0.00032,4]
[310089936,1704317432779,-166.666666,0.00032388,2]
[310089937,1704317432789,-679.37734518,0.00032865,4]
[310089938,1704317432800,-211.71,0.0003289,3]
[310089939,1704317432809,-395.42,0.0003289,3]
[310089940,1704317432819,-329.51,0.0003289,3]
[310089941,1704317432829,-612.76,0.0003289,3]
[310089942,1704317432838,-7025.05114454,0.00032898,4]
[310089943,1704317432848,-451.07921998,0.00032898,4]
[310089944,1704317432857,-13673.02936715,0.00032898,4]
[310089945,1704317432867,-5.0527449,0.00032899,5]
[310090011,1704317440086,-437.90229,0.00032,2]
[310090012,1704317440098,-2170.09771,0.00032,2]
[310090013,1704317440107,-335.80910088,0.00032899,5]
[310090014,1704317440116,-389.87290472,0.00032899,2]
[310090015,1704317440126,-242.69270711,0.00032899,2]
[310090016,1704317440137,-470.34799076,0.00032899,2]
[310090017,1704317440146,-441.8958799,0.00032899,2]
[310090018,1704317440155,-500.0,0.00032899,2]
[310090019,1704317440164,-222.49640545,0.00032899,2]
[310090020,1704317440173,-282.08381241,0.000329,3]
[310090021,1704317440183,-17659.17910066,0.000329,14]
[310090022,1704317440191,-2190.54521966,0.000329,2]
[310090044,1704317441838,-351.0,0.000329,2]
[310090045,1704317441850,-5944.02022106,0.000329,2]
[310090046,1704317441865,-171221.31282,0.000329,2]
[310090082,1704317443736,-510.64,0.0003289,3]
[310090084,1704317443746,-31.26,0.00032899,5]
[310090204,1704317450463,-190.72300866,0.00032898,4]
[310090205,1704317450474,-177.9496353,0.00032898,4]
[310090207,1704317450484,-552.67028629,0.00032898,4]
[310090209,1704317450494,-260.46874,0.00032898,4]
[310090211,1704317450504,-123.60062544,0.00032899,5]
[310090213,1704317450514,-176.29639192,0.00032899,4]
[310090215,1704317450525,-3370.17064279,0.00032899,4]
[310090217,1704317450535,-399.60742015,0.00032899,4]
[310090219,1704317450545,-245.74596038,0.00032899,4]
[310090221,1704317450555,-96644.12173928,0.000329,2]
[310090223,1704317450564,-2371.03879565,0.00032997,4]
[310090225,1704317450574,-5962.58820701,0.00032997,4]
[310090227,1704317450583,-623.47978173,0.00032998,4]
[310090229,1704317450593,-633.95978408,0.00032998,4]
[310090231,1704317450604,-242.17543569,0.00032998,4]
[310090233,1704317450615,-284.62334925,0.00032998,4]
[310090235,1704317450624,-250.79896015,0.00032998,4]
[310090237,1704317450634,-2777.46895919,0.00032998,4]
[310090239,1704317450645,-225.63336747,0.00032998,4]
[310090241,1704317450654,-632.30000405,0.00032998,4]
[310090243,1704317450664,-580.64459094,0.00032998,4]
[310090245,1704317450673,-398.07350448,0.00032998,4]
[310090247,1704317450684,-614.77783664,0.00032999,4]
[310090249,1704317450693,-4719.95113446,0.00032999,3]
[310090251,1704317450703,-2817.67172187,0.00032999,4]
[310090253,1704317450713,-605.76569504,0.00032999,4]
[310090254,1704317450722,-633.22838519,0.00032999,4]
[310090255,1704317450731,-450.37408055,0.00032999,4]
[310090256,1704317450741,-379.93703111,0.00032999,7]
[310090257,1704317450750,-270.22444833,0.00032999,7]
[310090259,1704317450760,-167.08838774,0.00032999,7]
[310090260,1704317450769,-450.67954,0.00032999,4]
[310090262,1704317450779,-504.04498729,0.00032999,4]
[310090264,1704317450789,-210.33567912,0.00032999,7]
[310090266,1704317450799,-193.14837428,0.00032999,7]
[310090268,1704317450809,-302.42699237,0.00032999,7]
[310090270,1704317450819,-490.78325128,0.00032999,4]
[310090272,1704317450828,-433.49784327,0.00032999,7]
[310090274,1704317450838,-232.4724299,0.00033,3]
[310090276,1704317450848,-383498.92485476,0.00033,30]
[310090322,1704318283611,-154.86062544,0.0002418,2]
[310090323,1704318283639,-871.16529394,0.0002418,2]
[310090324,1704318283669,-1678.44623893,0.0002418,2]
[310090325,1704318283705,-154.86062544,0.00024181,4]
[310090326,1704318283733,-154.86062544,0.00024181,2]
[310090327,1704318283761,-2090.15137702,0.00024181,2]
[310090328,1704318283789,-192.08397,0.00024182,2]
[310090329,1704318283818,-2698.71304933,0.00024249,5]
[310090330,1704318283847,-24900.0,0.00024253,2]
[310090331,1704318283876,-1019.46116191,0.00024633,2]
[310090332,1704318283902,-411.06887298,0.00024663,2]
[310090333,1704318283930,-268.73332704,0.00024674,2]
[310090367,1704318631773,-154.86062544,0.00025807,2]
[310090369,1704318631783,-271.49801537,0.00025807,2]
[310090371,1704318631793,-1330.98057853,0.00025807,2]
[310090374,1704318631806,-700.6238575,0.00025807,2]
[310090376,1704318631816,-154.86062544,0.00025807,2]
[310090377,1704318631827,-154.86062544,0.00025808,2]
[310090379,1704318631836,-154.86062544,0.00025808,2]
[310090381,1704318631846,-154.86062544,0.00025809,2]
[310090384,1704318631856,-154.86062544,0.00025809,2]
[310090386,1704318631867,-154.86062544,0.00025809,4]
[310090389,1704318631878,-154.86062544,0.0002581,2]
[310090390,1704318631889,-2698.71304933,0.00025811,5]
[310090392,1704318631903,-192.08397,0.0002583,2]
[310090394,1704318631917,-192.08397,0.00027478,2]
[310090396,1704318631926,-1050.54870749,0.00032789,3]
[310090398,1704318631936,-425.53,0.0003279,3]
[310090400,1704318631945,-354.61,0.0003279,3]
[310090402,1704318631955,-295.51,0.0003279,3]
[310090404,1704318631965,-1053.42328718,0.00032797,4]
[310090406,1704318631975,-214.92135446,0.00032798,4]
[310090408,1704318631984,-355.28458033,0.00032798,2]
[310090410,1704318631994,-166.02335344,0.00032798,4]
[310090412,1704318632004,-276.51691556,0.00032798,4]
[310090414,1704318632013,-807.97087888,0.00032798,4]
[310090416,1704318632023,-1222.7436092,0.00032798,4]
[310090643,1704318645846,-154.86062544,0.00025806,2]
[310090645,1704318645857,-246.26,0.0003279,3]
[310090648,1704318645867,-336.58354122,0.00032798,4]
[310090673,1704318646016,-17553.42454176,0.00032798,4]
[310090676,1704318646025,-1412.38155704,0.00032798,7]
[310090678,1704318646034,-155.23096435,0.00032798,2]
[310090681,1704318646044,-154.90705577,0.00032798,4]
[310090684,1704318646053,-155.08998107,0.00032798,2]
[310090687,1704318646062,-721.06173616,0.00032798,4]
[310090690,1704318646071,-870.68789666,0.00032798,4]
[310090693,1704318646081,-1485.28834198,0.00032798,2]
[310090696,1704318646091,-154.86062544,0.00032798,4]
[310090699,1704318646100,-639.51752231,0.00032798,4]
[310090702,1704318646109,-261.55068546,0.00032798,4]
[310090705,1704318646118,-180.57748244,0.00032798,2]
[310090708,1704318646129,-155.57384979,0.00032798,2]
[310090711,1704318646140,-236.86655345,0.00032798,4]
[310090714,1704318646150,-154.93028915,0.00032798,4]
[310090717,1704318646159,-179.8501571,0.00032798,4]
[310090719,1704318646168,-154.90705577,0.00032798,4]
[310090722,1704318646177,-155.61531825,0.00032798,4]
[310090725,1704318646186,-305.67093177,0.00032798,2]
[310090728,1704318646195,-210.59402173,0.00032799,4]
[310090731,1704318646204,-288.99856219,0.00032799,2]
[310090734,1704318646213,-126211.46925651,0.000328,2]
[310091613,1704319603365,-154.86062544,0.00028726,2]
[310091614,1704319603385,-11.80604056,0.00028726,2]
[310091652,1704319835146,-293.96606539,0.00028131,2]
[310091653,1704319835169,-1573.51769649,0.00028132,2]
[310091654,1704319835180,-466.12469227,0.00028133,2]
[310091655,1704319835191,-235.42779406,0.00028133,2]
[310091656,1704319835202,-154.87609912,0.00028134,2]
[310091657,1704319835213,-154.87609912,0.00028134,2]
[310091658,1704319835224,-641.96499442,0.00028135,2]
[310091659,1704319835235,-154.87609912,0.00028136,2]
[310091660,1704319835248,-2804.5410618,0.00028136,2]
[310091661,1704319835259,-170.1709713,0.00028136,2]
[310091662,1704319835271,-154.86062544,0.00028137,4]
[310091663,1704319835281,-24900.0,0.00028143,2]
[310091664,1704319835413,-154.86062544,0.00028744,2]
[310091665,1704319835424,-154.86062544,0.00029507,2]
[310091666,1704319835436,-1678.44623893,0.00029997,2]
[310091667,1704319835446,-155.18076942,0.00029997,2]
[310091668,1704319835457,-2926.53191983,0.00029997,2]
[310091669,1704319835468,-155.23899653,0.00029997,2]
[310091670,1704319835478,-155.92972528,0.00029997,2]
[310091671,1704319835489,-590.516407,0.00029997,2]
[310091672,1704319835499,-862.66246018,0.00029997,2]
[310091673,1704319835509,-154.92246147,0.00029997,2]
[310091674,1704319835519,-2097.15281013,0.00029997,2]
[310091675,1704319835530,-433.14504265,0.00029997,2]
[310091676,1704319835541,-460.7858409,0.00029998,2]
[310091677,1704319835552,-160.42894115,0.00029998,2]
[310091678,1704319835563,-1831.6724451,0.00029998,2]
[310091679,1704319835573,-55860.52353008,0.00029999,2]
[310091680,1704319835583,-2747.66702496,0.0003,2]
[310091681,1704319835594,-1738.05258797,0.0003,2]
[310091682,1704319835605,-3208.86324974,0.0003,3]
[310091718,1704319841083,-205.21,0.00029989,3]
[310091720,1704319841093,-1621.74303911,0.0003,3]
[310091763,1704319842953,-5169.39371115,0.0003,3]
[310091764,1704319842963,-1351.1951436,0.0003,10]
[310091765,1704319842975,-1534.05272056,0.0003,10]
[310091766,1704319842985,-1213.41146954,0.0003,4]
[310091767,1704319842996,-5904.26799541,0.0003,4]
[310091768,1704319843006,-200.0,0.00030955,15]
[310091769,1704319843016,-198.40961021,0.00032798,4]
[310091772,1704319843026,-365.11586738,0.00032798,4]
[310091775,1704319843036,-1155.64819957,0.00032798,4]
[310091777,1704319843047,-155.19974887,0.00032798,4]
[310091779,1704319843058,-177.94735437,0.00032798,3]
[310091781,1704319843068,-240.3904102,0.00032798,4]
[310091784,1704319843079,-360.74116376,0.00032798,4]
[310091786,1704319843089,-5266.743781,0.00032798,4]
[310091788,1704319843101,-196.86536338,0.00032798,4]
[310091789,1704319843111,-690.04927502,0.00032798,7]
[310091790,1704319843121,-2378.44142658,0.00032798,4]
[310091791,1704319843157,-56.22168384,0.00032798,4]
[310091792,1704319843171,-589.96082337,0.00032798,4]
[310091823,1704319846022,-282.21176052,0.00032798,4]
[310091825,1704319846034,-2840.77444557,0.00032798,4]
[310091827,1704319846044,-5076.05878035,0.00032798,4]
[310091829,1704319846053,-309.56657895,0.00032799,4]
[310091831,1704319846063,-155.10738461,0.00032799,4]
[310091833,1704319846072,-1121.1675859,0.00032799,5]
[310091835,1704319846082,-173.91307317,0.00032799,4]
[310091838,1704319846091,-704.69366235,0.00032799,4]
[310091841,1704319846100,-282.08381241,0.000328,3]
[310091844,1704319846110,-268.71363121,0.00032898,4]
[310092001,1704321032116,-204.00393766,0.00025424,2]
[310092003,1704321032126,-154.87609912,0.00030474,5]
[310092005,1704321032135,-394.96400341,0.00030475,4]
[310092007,1704321032145,-228.63662171,0.00030501,4]
[310092009,1704321032154,-186.2344442,0.00031955,2]
[310092010,1704321032163,-351.0,0.00032132,2]
[310092012,1704321032173,-24900.0,0.00032132,2]
[310092014,1704321032184,-227.3193674,0.00032797,4]
[310092016,1704321032193,-1861.02916076,0.00032898,4]
[310092017,1704321032202,-282.08381241,0.00032898,3]
[310092019,1704321032211,-2196.28246608,0.00032899,14]
[310092021,1704321032220,-365.29294367,0.00032999,2]
[310092023,1704321032229,-154.84515485,0.00033,4]
[310092025,1704321032239,-2000.0,0.00033,2]
[310092026,1704321032250,-150.0,0.00033,2]
[310092029,1704321032259,-172.0,0.00033,2]
[310092031,1704321032269,-2000.0,0.0003301,2]
[310092034,1704321032279,-2000.0,0.0003302,2]
[310092035,1704321032288,-2000.0,0.0003303,2]
[310092037,1704321032297,-2000.0,0.0003304,2]
[310092039,1704321032306,-2000.0,0.0003305,2]
[310092041,1704321032315,-2000.0,0.0003306,2]
[310092042,1704321032324,-2553.21584,0.0003307,2]
[310092044,1704321032333,-155.06856509,0.00033898,2]
[310092046,1704321032342,-641.65330945,0.00033898,4]
[310092048,1704321032351,-189.98091252,0.00033898,2]
[310092050,1704321032361,-903.21651068,0.00033898,4]
[310092051,1704321032370,-175.08476383,0.00033898,4]
[310092053,1704321032379,-316.10474592,0.00033898,4]
[310092055,1704321032388,-178.93462314,0.00033898,4]
[310092056,1704321032397,-1151.09317548,0.00033898,4]
[310092058,1704321032405,-163.71831345,0.00033898,7]
[310092059,1704321032415,-675.8919533,0.00033899,4]
[310092061,1704321032424,-1393.709427,0.00034,2]
[310092162,1704321041358,-172.0,0.00033,2]
[310092163,1704321041370,-1505.20779055,0.00034,2]
[310092164,1704321041381,-10622.49039265,0.00034,2]
[310092165,1704321041391,-150.0,0.00034,2]
[310092166,1704321041400,-277.5096076,0.00034,7]
[310092167,1704321041411,-722.4903924,0.00034,7]
[310092168,1704321041421,-263.78283158,0.00034521,2]
[310092169,1704321041433,-302.74903724,0.00034521,2]
[310092506,1704321046205,-154.87609912,0.00031858,5]
[310092508,1704321046214,-720.05552218,0.00034521,2]
[310092510,1704321046224,-172.0,0.00034521,2]
[310092512,1704321046233,-363.81,0.00034989,3]
[310092514,1704321046242,-2469.2583787,0.00034999,2]
[310092780,1704322238420,-154.87609912,0.00030332,4]
[310092782,1704322238430,-154.87609912,0.00030333,5]
[310092783,1704322238439,-743.34278036,0.00030334,4]
[310092784,1704322238449,-243.26967795,0.00030335,4]
[310092785,1704322238458,-2330.21013794,0.00030335,4]
[310092786,1704322238476,-325.37966407,0.00030336,4]
[310092787,1704322238489,-154.87609912,0.00030337,4]
[310092788,1704322238499,-166.16944232,0.00030338,4]
[310092905,1704322246387,-2969.22586576,0.00030338,4]
[310092906,1704322246402,-3889.65583646,0.00030338,4]
[310092907,1704322246412,-166.6666669,0.0003035,2]
[310092908,1704322246421,-193.5732316,0.00030775,2]
[310092909,1704322246431,-750.92,0.00030864,3]
[310092910,1704322246441,-625.76,0.00030864,3]
[310092911,1704322246452,-2817.67172187,0.00030872,4]
[310092912,1704322246462,-154.92256659,0.00030872,4]
[310092913,1704322246472,-333.09,0.00030873,2]
[310092914,1704322246482,-105135.66518324,0.00030874,4]
[310092915,1704322246598,-24900.0,0.00030875,2]
[310092916,1704322246612,-154.87609912,0.00031064,2]
[310092917,1704322246622,-623.31108552,0.00031167,2]
[310092918,1704322246632,-679.37734518,0.00032394,4]
[310092919,1704322246641,-620.16555428,0.00032725,2]
[310092920,1704322246651,-324.31791792,0.00032898,3]
[310092921,1704322246660,-200.0,0.00033373,15]
[310092922,1704322246670,-1000.0,0.00034,7]
[310092923,1704322246680,-4657.66153763,0.00034,2]
[310092924,1704322246689,-13673.02936715,0.00034261,4]
[310092925,1704322246699,-620.00827771,0.00034361,2]
[310092926,1704322246709,-1089.819721,0.00034521,2]
[310092927,1704322246718,-227.4243312,0.00034521,4]
[310092928,1704322246727,-990.0,0.000348,2]
[310092929,1704322246737,-150.0,0.000349,2]
[310092930,1704322246746,-261.39580651,0.00034999,4]
[310092931,1704322246755,-710.70326201,0.00034999,4]
[310092932,1704322246765,-154.87609912,0.00034999,4]
[310092933,1704322246774,-208.28940638,0.00034999,4]
[310092934,1704322246784,-155.05141653,0.00034999,4]
[310092935,1704322246794,-2233.88024458,0.00034999,4]
[310092936,1704322246803,-155.34994199,0.00035,2]
[310092937,1704322246813,-246.61662775,0.00035,2]
[310092938,1704322246822,-1454.45537407,0.00035,14]
[310092939,1704322246831,-3538.7366841,0.00035,2]
[310092940,1704322246841,-154.87609912,0.00035,4]
[310092941,1704322246850,-4177.42015254,0.00035,4]
[310092942,1704322246859,-590.27084275,0.00035,2]
[310092943,1704322246868,-331.97293247,0.00035,4]
[310092944,1704322246877,-155.0,0.00035,2]